[Event "Masters Tournament (MTO)"]
[Site "Biel, Switzerland"]
[Date "2026.07.16"]
[Round "4.45"]
[White "Joly, Fabrice"]
[Black "Carey, Michael"]
[Result "1-0"]
[TimeControl "100+30+30sec/move"]
[WhiteTitle "-"]
[BlackTitle "-"]
[WhiteFideId "612235"]
[BlackFideId "30923760"]
[WhiteElo "1907"]
[BlackElo "1946"]

1. d4 {[%clk 01:40:40]} {[%emt 00:00:21]} Nf6 {[%clk 01:40:51]} {[%emt
00:00:09]} 2. c4 {[%clk 01:40:38]} {[%emt 00:00:32]} c5 {[%clk 01:41:04]}
{[%emt 00:00:17]} 3. d5 {[%clk 01:40:57]} {[%emt 00:00:10]} b5 {[%clk
01:41:29]} {[%emt 00:00:05]} 4. cxb5 {[%clk 01:41:21]} {[%emt 00:00:07]} a6
{[%clk 01:41:53]} {[%emt 00:00:06]} 5. g4 {[%clk 01:41:46]} {[%emt 00:00:04]}
d6 {[%clk 01:36:04]} {[%emt 00:06:19]} 6. g5 {[%clk 01:40:38]} {[%emt
00:01:38]} Nfd7 {[%clk 01:36:18]} {[%emt 00:00:15]} 7. bxa6 {[%clk 01:39:32]}
{[%emt 00:01:37]} g6 {[%clk 01:34:44]} {[%emt 00:02:04]} 8. h4 {[%clk
01:37:31]} {[%emt 00:02:31]} Bg7 {[%clk 01:32:54]} {[%emt 00:02:20]} 9. Nc3
{[%clk 01:32:42]} {[%emt 00:05:19]} Bxa6 {[%clk 01:26:07]} {[%emt 00:07:17]} 10.
Bg2 {[%clk 01:31:37]} {[%emt 00:01:34]} Nb6 {[%clk 01:21:23]} {[%emt 00:05:15]}
11. Nf3 {[%clk 01:28:40]} {[%emt 00:03:27]} N8d7 {[%clk 01:20:51]} {[%emt
00:01:02]} 12. Qc2 {[%clk 01:23:44]} {[%emt 00:05:26]} Bb7 {[%clk 01:18:42]}
{[%emt 00:02:40]} 13. e4 {[%clk 01:15:53]} {[%emt 00:08:20]} Nc4 {[%clk
01:08:52]} {[%emt 00:10:19]} 14. h5 {[%clk 01:09:06]} {[%emt 00:07:18]} Qa5
{[%clk 01:06:10]} {[%emt 00:03:12]} 15. O-O {[%clk 01:04:36]} {[%emt 00:05:00]}
O-O {[%clk 01:05:40]} {[%emt 00:01:00]} 16. Rd1 {[%clk 00:56:19]} {[%emt
00:08:47]} Rfb8 {[%clk 01:00:05]} {[%emt 00:06:05]} 17. Nd2 {[%clk 00:48:14]}
{[%emt 00:08:36]} Ba6 {[%clk 00:43:27]} {[%emt 00:17:08]} 18. Nxc4 {[%clk
00:45:11]} {[%emt 00:03:33]} Bxc4 {[%clk 00:43:54]} {[%emt 00:00:02]} 19. Bd2
{[%clk 00:45:18]} {[%emt 00:00:23]} Qa6 {[%clk 00:42:33]} {[%emt 00:01:52]} 20.
Be1 {[%clk 00:37:54]} {[%emt 00:07:54]} Ne5 {[%clk 00:34:52]} {[%emt 00:08:10]}
21. b3 {[%clk 00:30:19]} {[%emt 00:08:05]} Bd3 {[%clk 00:31:05]} {[%emt
00:04:16]} 22. Qd2 {[%clk 00:28:21]} {[%emt 00:02:30]} c4 {[%clk 00:26:50]}
{[%emt 00:04:45]} 23. Kh1 {[%clk 00:12:41]} {[%emt 00:16:10]} gxh5 {[%clk
00:26:05]} {[%emt 00:01:15]} 24. f4 {[%clk 00:08:56]} {[%emt 00:04:15]} Ng4
{[%clk 00:22:45]} {[%emt 00:03:50]} 25. bxc4 {[%clk 00:08:57]} {[%emt
00:00:30]} Bxc4 {[%clk 00:22:47]} {[%emt 00:00:28]} 26. Bf3 {[%clk 00:08:30]}
{[%emt 00:00:56]} Rc8 {[%clk 00:14:06]} {[%emt 00:09:10]} 27. Rac1 {[%clk
00:05:57]} {[%emt 00:03:04]} Qa7 {[%clk 00:04:54]} {[%emt 00:09:41]} 28. Bxg4
{[%clk 00:06:15]} {[%emt 00:00:12]} hxg4 {[%clk 00:05:22]} {[%emt 00:00:01]} 29.
Bf2 {[%clk 00:06:35]} {[%emt 00:00:11]} Qd7 {[%clk 00:04:59]} {[%emt 00:00:53]}
30. Bd4 {[%clk 00:06:51]} {[%emt 00:00:13]} g3 {[%clk 00:02:07]} {[%emt
00:03:23]} 31. f5 {[%clk 00:07:08]} {[%emt 00:00:13]} Bxd4 {[%clk 00:01:35]}
{[%emt 00:01:03]} 32. Qxd4 {[%clk 00:07:33]} {[%emt 00:00:06]} Qa7 {[%clk
00:01:38]} {[%emt 00:00:26]} 33. Qxa7 {[%clk 00:05:22]} {[%emt 00:02:41]} Rxa7
{[%clk 00:02:07]} 34. f6 {[%clk 00:03:29]} {[%emt 00:02:23]} exf6 {[%clk
00:02:07]} {[%emt 00:00:31]} 35. gxf6 {[%clk 00:03:58]} {[%emt 00:00:01]} g2+
{[%clk 00:00:59]} {[%emt 00:01:38]} 36. Kxg2 {[%clk 00:04:22]} {[%emt
00:00:05]} Bxa2 {[%clk 00:01:05]} {[%emt 00:00:25]} 37. Nxa2 {[%clk 00:04:24]}
{[%emt 00:00:28]} Rxa2+ {[%clk 00:01:34]} {[%emt 00:00:01]} 38. Kf3 {[%clk
00:04:43]} {[%emt 00:00:11]} Rca8 {[%clk 00:01:02]} {[%emt 00:01:02]} 39. Rg1+
{[%clk 00:03:47]} {[%emt 00:01:25]} Kf8 {[%clk 00:01:03]} {[%emt 00:00:29]} 40.
Rg2 {[%clk 00:03:41]} {[%emt 00:00:36]} R2a3+ {[%clk 00:00:42]} {[%emt
00:00:51]} 41. Kf4 {[%clk 00:03:54]} {[%emt 00:00:17]} Ra1 {[%clk 00:28:31]}
{[%emt 00:02:41]} 42. Rxa1 {[%clk 00:26:24]} {[%emt 00:08:01]} Rxa1 {[%clk
00:28:59]} {[%emt 00:00:02]} 43. Rb2 {[%clk 00:26:26]} {[%emt 00:00:28]} Rf1+
{[%clk 00:28:45]} {[%emt 00:00:43]} 44. Kg5 {[%clk 00:26:28]} {[%emt 00:00:29]}
Rg1+ {[%clk 00:25:42]} {[%emt 00:03:33]} 45. Kh4 {[%clk 00:26:09]} {[%emt
00:00:49]} Ke8 {[%clk 00:24:36]} {[%emt 00:01:37]} 46. Rb8+ {[%clk 00:25:35]}
{[%emt 00:01:03]} Kd7 {[%clk 00:24:56]} {[%emt 00:00:09]} 47. Rf8 {[%clk
00:25:27]} {[%emt 00:00:39]} Rh1+ {[%clk 00:23:15]} {[%emt 00:02:10]} 48. Kg3
{[%clk 00:24:11]} {[%emt 00:01:48]} Rf1 {[%clk 00:21:00]} {[%emt 00:02:43]} 49.
Rxf7+ {[%clk 00:24:16]} {[%emt 00:00:25]} Kd8 {[%clk 00:18:56]} {[%emt
00:02:35]} 50. Kg4 {[%clk 00:23:20]} {[%emt 00:01:27]} Ke8 {[%clk 00:18:17]}
{[%emt 00:01:09]} 51. Re7+ {[%clk 00:23:07]} {[%emt 00:00:43]} Kf8 {[%clk
00:11:40]} {[%emt 00:07:07]} 52. Kg5 {[%clk 00:21:46]} {[%emt 00:01:51]} h6+
{[%clk 00:09:58]} {[%emt 00:02:12]} 53. Kg6 {[%clk 00:21:00]} {[%emt 00:01:16]}
Rg1+ {[%clk 00:07:55]} {[%emt 00:02:33]} 54. Kf5 {[%clk 00:20:00]} {[%emt
00:01:30]} Re1 {[%clk 00:06:45]} {[%emt 00:01:39]} 55. Rh7 {[%emt 00:02:27]}
1-0

[Event "Masters Tournament (MTO)"]
[Site "Biel, Switzerland"]
[Date "2026.07.16"]
[Round "4.46"]
[White "Simon, Ralf-Axel"]
[Black "Alsaleh, Eissa"]
[Result "0-1"]
[TimeControl "100+30+30sec/move"]
[WhiteTitle "-"]
[BlackTitle "-"]
[WhiteFideId "4603125"]
[BlackFideId "10312463"]
[WhiteElo "1935"]
[BlackElo "1908"]

1. d4 {[%clk 01:39:37]} {[%emt 00:00:04]} g6 {[%clk 01:40:06]} {[%emt
00:00:55]} 2. e4 {[%clk 01:38:46]} {[%emt 00:01:20]} d6 {[%clk 01:40:05]}
{[%emt 00:00:32]} 3. c4 {[%clk 01:29:39]} {[%emt 00:09:37]} Nf6 {[%clk
01:38:53]} {[%emt 00:01:42]} 4. Nc3 {[%clk 01:26:57]} {[%emt 00:03:11]} Bg7
{[%clk 01:38:48]} {[%emt 00:00:36]} 5. Nf3 {[%clk 01:27:10]} {[%emt 00:00:17]}
O-O {[%clk 01:37:45]} {[%emt 00:01:32]} 6. Be2 {[%clk 01:27:18]} {[%emt
00:00:22]} c5 {[%clk 01:35:40]} {[%emt 00:02:35]} 7. O-O {[%clk 01:18:49]}
{[%emt 00:08:58]} h5 {[%clk 01:31:35]} {[%emt 00:04:36]} 8. d5 {[%clk
01:00:00]} {[%emt 00:19:20]} a6 {[%clk 01:30:28]} {[%emt 00:01:37]} 9. Rb1
{[%clk 00:58:45]} {[%emt 00:01:44]} b6 {[%emt 00:05:48]} 10. a3 {[%clk
00:57:45]} {[%emt 00:00:58]} Bb7 {[%clk 01:23:57]} {[%emt 00:05:47]} 11. Qc2
{[%clk 00:54:51]} {[%emt 00:03:23]} e6 {[%clk 01:21:05]} {[%emt 00:03:22]} 12.
dxe6 {[%clk 00:35:06]} {[%emt 00:20:15]} Nc6 {[%clk 01:05:09]} {[%emt
00:16:27]} 13. exf7+ {[%clk 00:34:28]} {[%emt 00:01:05]} Rxf7 {[%clk 01:02:40]}
{[%emt 00:03:00]} 14. Rd1 {[%clk 00:32:41]} {[%emt 00:02:17]} Ng4 {[%clk
00:51:56]} {[%emt 00:11:14]} 15. Bg5 {[%clk 00:30:56]} {[%emt 00:02:15]} Qf8
{[%clk 00:49:01]} {[%emt 00:03:25]} 16. h3 {[%clk 00:26:17]} {[%emt 00:05:10]}
Nge5 {[%clk 00:43:37]} {[%emt 00:05:54]} 17. Nd5 {[%clk 00:25:57]} {[%emt
00:00:50]} Nxf3+ {[%clk 00:40:27]} {[%emt 00:03:39]} 18. Bxf3 {[%clk 00:24:54]}
{[%emt 00:01:34]} Nd4 {[%clk 00:37:56]} {[%emt 00:03:01]} 19. Qd3 {[%clk
00:24:00]} {[%emt 00:01:23]} Rxf3 {[%emt 00:05:49]} 20. gxf3 {[%clk 00:24:00]}
{[%emt 00:00:04]} Nxf3+ {[%clk 00:33:05]} {[%emt 00:00:29]} 21. Kg2 {[%clk
00:22:03]} {[%emt 00:02:27]} Nxg5 {[%clk 00:32:55]} {[%emt 00:00:39]} 22. Qg3
{[%clk 00:21:31]} {[%emt 00:01:02]} Nxe4 {[%clk 00:31:13]} {[%emt 00:02:13]} 23.
Qe3 {[%clk 00:20:38]} {[%emt 00:01:23]} Re8 {[%clk 00:28:45]} {[%emt 00:02:58]}
24. Re1 {[%clk 00:20:29]} {[%emt 00:00:40]} Bd4 {[%clk 00:25:27]} {[%emt
00:03:48]} 25. Qf3 {[%clk 00:19:01]} {[%emt 00:01:58]} Qxf3+ {[%clk 00:23:31]}
{[%emt 00:02:26]} 0-1

[Event "Masters Tournament (MTO)"]
[Site "Biel, Switzerland"]
[Date "2026.07.16"]
[Round "4.47"]
[White "Magnussen, Petur Gardar"]
[Black "Celis, Joel"]
[Result "0-1"]
[TimeControl "100+30+30sec/move"]
[WhiteTitle "-"]
[BlackTitle "-"]
[WhiteFideId "7203802"]
[BlackFideId "15400212"]
[WhiteElo "1957"]
[BlackElo "1981"]

1. e4 {[%emt 00:00:33]} c5 {[%emt 00:00:05]} 2. Nf3 {[%emt 00:00:04]} Nc6
{[%emt 00:00:05]} 3. d4 {[%emt 00:00:05]} cxd4 {[%emt 00:00:05]} 4. Nxd4 {[%emt
00:00:02]} g6 {[%emt 00:00:06]} 5. Nc3 {[%emt 00:00:06]} Bg7 {[%emt 00:00:14]}
6. Be3 {[%emt 00:00:04]} Nf6 {[%emt 00:00:17]} 7. Bc4 {[%emt 00:00:10]} d6
{[%emt 00:00:08]} 8. f3 {[%emt 00:00:32]} Qb6 {[%emt 00:00:17]} 9. Bb5 {[%emt
00:00:22]} Qc7 {[%emt 00:01:06]} 10. Qd2 {[%emt 00:02:29]} a6 {[%emt 00:08:54]}
11. Bxc6+ {[%emt 00:03:29]} bxc6 {[%emt 00:00:11]} 12. g4 {[%emt 00:03:59]} Rb8
{[%emt 00:02:48]} 13. O-O-O {[%emt 00:09:55]} Qb7 {[%emt 00:05:18]} 14. b3
{[%emt 00:07:59]} Nd7 {[%emt 00:30:53]} 15. Bh6 {[%emt 00:37:52]} Bf6 {[%emt
00:01:21]} 16. f4 {[%emt 00:03:05]} c5 {[%emt 00:37:27]} 17. Nde2 {[%emt
00:06:40]} Qb4 {[%emt 00:00:15]} 18. Kb1 {[%emt 00:05:43]} c4 {[%emt 00:08:17]}
19. e5 {[%emt 00:11:49]} cxb3 {[%emt 00:00:35]} 20. cxb3 {[%emt 00:00:54]} dxe5
{[%emt 00:03:13]} 21. g5 {[%emt 00:00:43]} Bxg5 {[%emt 00:03:21]} 22. Bxg5
{[%emt 00:00:59]} f6 {[%emt 00:02:32]} 23. Bh4 {[%emt 00:03:31]} O-O {[%emt
00:00:55]} 24. Nd5 {[%emt 00:01:02]} Qe4+ {[%emt 00:01:24]} 25. Kb2 {[%emt
00:00:23]} Nb6 {[%emt 00:01:28]} 26. Nxb6 {[%emt 00:03:39]} Rxb6 {[%emt
00:00:17]} 27. Qd5+ {[%emt 00:01:24]} Qxd5 {[%emt 00:00:12]} 28. Rxd5 Bb7
{[%emt 00:00:21]} 29. Rhd1 {[%emt 00:00:43]} Bxd5 {[%emt 00:00:08]} 30. Rxd5
exf4 {[%emt 00:00:22]} 31. Nxf4 {[%emt 00:00:09]} g5 {[%emt 00:02:19]} 32. Bf2
Rc6 {[%emt 00:00:19]} 33. Nd3 {[%emt 00:00:53]} Rfc8 {[%emt 00:00:41]} 34. Nb4
{[%emt 00:02:22]} Re6 {[%emt 00:00:10]} 35. Rd2 {[%emt 00:04:54]} Kf7 {[%emt
00:00:11]} 36. Nd3 {[%emt 00:00:32]} Rd6 {[%emt 00:00:35]} 37. Bg3 {[%emt
00:00:59]} Rd5 {[%emt 00:00:47]} 38. Rc2 {[%emt 00:00:59]} Rxc2+ {[%emt
00:00:42]} 39. Kxc2 e5 {[%emt 00:00:37]} 40. Nb4 {[%emt 00:00:11]} Rd6 {[%emt
00:00:12]} 41. Kc3 {[%emt 00:01:09]} h5 {[%emt 00:01:00]} 42. h3 {[%emt
00:00:32]} g4 {[%emt 00:00:43]} 43. h4 {[%emt 00:00:41]} Ke6 {[%emt 00:02:00]}
44. Nd3 {[%emt 00:00:16]} Kd5 {[%emt 00:01:20]} 45. Nf2 {[%emt 00:00:10]} Rc6+
{[%emt 00:00:53]} 46. Kd3 {[%emt 00:00:18]} f5 {[%emt 00:00:33]} 47. Nd1 {[%emt
00:00:48]} f4 {[%emt 00:00:49]} 48. Be1 {[%emt 00:00:24]} e4+ {[%emt 00:01:38]}
49. Kd2 {[%emt 00:00:17]} Kd4 {[%emt 00:03:36]} 0-1